Cogmind - Beta 17 @@@ ROGUE MODE // 2026.07.18 @ 17:37:32 Player: Cinder Result: Self-destructed Performance ------------- Evolutions (2) 1000 Regions Visited (6) 1200 Robots Destroyed (97) 485 Value Destroyed (2577) 2577 Prototype IDs (3) 60 Alien Tech Used (0) 0 Bonus (39) 39 TOTAL SCORE: 5361 Bonus ------- High Alert Combat Kills 39 Cogmind --------- Core Integrity 332/550 Matter 300/300 Energy 68/100 System Corruption 0% Temperature Cool (45) Movement Core (1350) Ox26 Location -8/Materials Parts ------- > --- POWER (1) -------- (None) > --- PROPULSION (2) --- (None) > --- UTILITY (5) ------ Huge Storage Unit Machine Analyzer System Shield > --- WEAPON (3) ------- (None) > --- INVENTORY (25) --- Improved Ion Engine Light Nuclear Core Light Nuclear Core Scrap Suit Heat Sink Heat Sink Improved Heat Sink Large Battery (200) High-capacity Matter Pod (200) Machine Analyzer Particle Charger Hardlight Generator High-powered Tractor Beam Beam Cannon Advanced Beam Cannon Advanced Beam Cannon Advanced Beam Cannon EMP Blaster Rocket Launcher Peak State ------------ > --- POWER ------------ Light Nuclear Core > --- PROPULSION ------- Wheel Armored Wheel > --- UTILITY ---------- Advanced Heat Sink Huge Storage Unit Machine Analyzer Medium Armor Plating System Shield > --- WEAPON ----------- Beam Rifle Spread Laser Heavy Particle Gun > --- INVENTORY -------- Improved Ion Engine Light Nuclear Core Wheel Wheel Wheel Armored Wheel Scrap Suit Heat Sink Heat Sink Improved Heat Sink Large Battery High-capacity Matter Pod Machine Analyzer Light Armor Plating Hardlight Generator Heavy Particle Gun Beam Cannon Advanced Beam Cannon Advanced Beam Cannon Advanced Beam Cannon EMP Blaster Rocket Launcher [Rating: 33] Favorites ----------- Power Improved Ion Engine Engine Improved Ion Engine Power Core Light Nuclear Core Propulsion Armored Wheel Wheel Armored Wheel Utility Machine Analyzer Device Heat Sink Storage Huge Storage Unit Processor Machine Analyzer Hackware Hacking Suite Protection Light Armor Plating Weapon Heavy Particle Gun Energy Gun Heavy Particle Gun Energy Cannon Beam Cannon Launcher Rocket Launcher Build | -11 -10 -9 -9 -9 -8 -8 ------- Run | Yrd Mat Mat Min Exi Min Mat Slots Evolved 4 | . . 2 . . . 2 Power . | . . . . . . . Propulsion . | . . . . . . . Utility 3 | . . 2 . . . 1 Weapon 1 | . . . . . . 1 Parts Attached 61 | 5 11 18 . . 13 14 Power 8 | . 2 4 . . 1 1 Engine 7 | . 2 4 . . 1 . Core 1 | . . . . . . 1 Reactor . | . . . . . . . Propulsion 17 | 2 3 3 . . 4 5 Treads . | . . . . . . . Leg . | . . . . . . . Wheel 17 | 2 3 3 . . 4 5 Hover . | . . . . . . . Flight . | . . . . . . . Utility 21 | 1 3 6 . . 6 5 Device 6 | . 2 1 . . 2 1 Storage 3 | 1 1 1 . . . . Processor 2 | . . 1 . . 1 . Hackware 2 | . . 1 . . . 1 Protection 8 | . . 2 . . 3 3 Artifact . | . . . . . . . Weapon 15 | 2 3 5 . . 2 3 Energy Gun 10 | 2 1 4 . . . 3 Energy Cannon 4 | . 2 1 . . 1 . Ballistic Gun . | . . . . . . . Ballistic Cannon . | . . . . . . . Launcher 1 | . . . . . 1 . Special Weapon . | . . . . . . . Impact Weapon . | . . . . . . . Slashing Weapon . | . . . . . . . Piercing Weapon . | . . . . . . . Special Melee Weapon . | . . . . . . . Unidentified Prototypes 3 | . . 3 . . . . Parts Lost 34 | . 6 7 . . 6 15 Power 2 | . . 1 . . . 1 Propulsion 12 | . 3 2 . . 2 5 Utility 11 | . 1 2 . . 3 5 Weapon 9 | . 2 2 . . 1 4 Highest Loss Streak 10 | . 1 2 . . 2 10 To Critical Strikes . | . . . . . . . Average Backups 18 | 1 10 17 24 24 22 21 Power 1 | 1 2 1 1 1 1 2 Propulsion 3 | . 2 3 5 5 3 3 Utility 6 | . 1 5 9 9 9 9 Weapon 6 | . 4 6 9 9 8 6 Tool/Special . | . . . . . . . Unused Backups 27 | . 3 3 . . 2 19 Power 5 | . 1 . . . 1 3 Propulsion . | . . . . . . . Utility 12 | . . 1 . . 1 10 Weapon 10 | . 2 2 . . . 6 Tool/Special . | . . . . . . . Average Slot Usage (%) 97 | . 93 98 100 100 99 98 Engine 10 | . 14 11 11 11 11 1 Wheel 21 | . 25 21 22 22 21 17 Device 10 | . 10 10 11 11 10 6 Storage 11 | . 14 11 11 11 11 9 Processor 9 | . . 10 11 11 14 12 Hackware 3 | . . 4 . . . 7 Protection 6 | . . 5 11 11 8 8 Energy Gun 15 | . 16 14 11 11 14 26 Energy Cannon 7 | . 11 7 11 11 7 . Peak Build Rating 33 | 5 12 26 20 20 22 33 Average Rating 19 | 3 8 21 20 20 20 29 On Entrance 14 | . 5 12 20 20 20 22 Avg Prop Armor Cover (%) . | . . . . . . . Naked Turns . | . . . . . . . Heaviest Build 102 | 8 32 98 98 98 98 102 Greatest Support 24 | 20 22 24 22 22 22 22 Greatest Overweight (x) 8 | . 3 8 4 4 8 7 Average Overweight (x) 2 | . . 2 4 4 4 4 Largest Inventory Capacity 25 | 8 15 25 25 25 25 25 Average Capacity 20 | 7 12 19 25 25 25 25 Most Carried 25 | 3 15 24 24 24 25 25 Average Carried 18 | 2 10 17 24 24 23 22 Final Capacity 25 | 8 15 25 25 25 25 25 Final Carried 24 | 3 13 24 24 24 22 23 Class Distribution -------------------- 50% | Mutant 37% | Scavenger-Mutant 5% | Scavenger-Tank 4% | Tank Dominant Class ---------------- Mutant | -10/Materials Mutant | -9/Materials Scavenger-Mutant | -9/Mines Scavenger-Mutant | -9/Exiles Scavenger-Mutant | -8/Mines Tank | -8/Materials Resources | -11 -10 -9 -9 -9 -8 -8 ----------- Run | Yrd Mat Mat Min Exi Min Mat Matter Collected 1103 | 237 298 205 . . 212 151 Remotely . | . . . . . . . Salvage Created 3339 | . 510 1546 . . 681 602 Parts 178 | . 35 83 . . 28 32 Haulers Intercepted 5 | . 2 3 . . . . Recyclers Shooed . | . . . . . . . Parts Field Recycled . | . . . . . . . Retrieved Matter . | . . . . . . . Parts Self-Destructed . | . . . . . . . Prevented . | . . . . . . . Parts Restored . | . . . . . . . Kills | -11 -10 -9 -9 -9 -8 -8 ------- Run | Yrd Mat Mat Min Exi Min Mat Combat Hostiles Destroyed 74 | . 12 33 . . 15 14 Guns 48 | . 7 22 . . 6 13 Cannons 20 | . 5 9 . . 6 . AOE 3 | . . . . . 3 . Classes Destroyed 13 | . 6 2 . . 4 1 Worker 7 | . 2 2 . . 1 2 Builder 1 | . . 1 . . . . Tunneler 1 | . . . . . 1 . Hauler 5 | . 2 3 . . . . Recycler 1 | . . . . . 1 . Operator 2 | . 1 1 . . . . Watcher 6 | . 1 4 . . . 1 Swarmer 24 | . 6 12 . . 3 3 Grunt 35 | . 6 12 . . 9 8 Brawler 2 | . . . . . 2 . Duelist 1 | . . . . . 1 . Sentry 10 | . . 9 . . . 1 Specialist 2 | . . . . . . 2 Best Kill Streak 5 | . 4 5 . . 3 5 Combat Bots Only 5 | . 3 4 . . 3 5 Max Kills in Single Turn 2 | . 1 2 . . 1 2 Gunslinging 1 | . . 1 . . . 1 Exploded 1 | . . . . . 1 . Melee . | . . . . . . . Uniques/NPCs Destroyed . | . . . . . . . Combat | -11 -10 -9 -9 -9 -8 -8 -------- Run | Yrd Mat Mat Min Exi Min Mat Hostile Shots Fired 420 | . 65 154 3 . 82 116 Missed 106 | . 10 44 2 . 21 29 Hits 314 | . 55 110 1 . 61 87 Melee 4 | . . . . . 4 . Projectile 310 | . 55 110 1 . 57 87 AOE 2 | . . . . . . 2 Critical Strikes 12 | . 3 2 . . 3 4 Damage Taken 4453 | . 626 1184 12 . 997 1634 Core 694 | . 88 230 . . 158 218 Absorbed by Shields . | . . . . . . . Core Remaining (%) 55 | 100 64 . . . 3 . Volleys Fired 235 | . 43 101 . . 56 35 Largest 3 | . 2 2 . . 2 3 Hottest 176 | . 120 124 . . 124 176 Shots Fired 475 | . 80 202 . . 99 94 Gun 336 | . 52 138 . . 52 94 Cannon 132 | . 28 64 . . 40 . Launcher 7 | . . . . . 7 . Special . | . . . . . . . Kinetic . | . . . . . . . Thermal 468 | . 80 202 . . 92 94 Explosive 7 | . . . . . 7 . Electromagnetic . | . . . . . . . Robot Hit Streak 25 | . 9 15 . . 25 17 Robot Miss Streak 5 | . 3 4 . . 3 5 Penetration Max . | . . . . . . . Secondary Targets 3 | . . 2 . . . 1 Max Gunslinging Chain 1 | . . 1 . . . 1 Shots Hit Robots 324 | . 48 133 . . 74 69 Core Hits 166 | . 27 47 . . 35 57 Critical Kills . | . . . . . . . Critical Parts Destroyed . | . . . . . . . Critical Strikes 16 | . 2 7 . . 3 4 Burn 16 | . 2 7 . . 3 4 Melee Attacks . | . . . . . . . Impact . | . . . . . . . Slashing . | . . . . . . . Piercing . | . . . . . . . Sneak Attacks . | . . . . . . . Combat Hostiles . | . . . . . . . Follow-up Attacks . | . . . . . . . Damage Inflicted 6024 | . 672 2606 . . 1623 1123 Guns 4044 | . 393 1947 . . 581 1123 Cannons 1506 | . 279 659 . . 568 . Explosions 474 | . . . . . 474 . Melee . | . . . . . . . Ramming . | . . . . . . . Kinetic . | . . . . . . . Thermal 5550 | . 672 2606 . . 1149 1123 Explosive 474 | . . . . . 474 . Electromagnetic . | . . . . . . . Impact . | . . . . . . . Slashing . | . . . . . . . Piercing . | . . . . . . . Highest Corruption . | . . . . . . . Average Corruption . | . . . . . . . Corruption Purged . | . . . . . . . Corruption Blocked . | . . . . . . . Overload Shots . | . . . . . . . Overflow Damage . | . . . . . . . Projectiles . | . . . . . . . Explosions . | . . . . . . . Melee . | . . . . . . . Knockbacks . | . . . . . . . Impact . | . . . . . . . Kinetic . | . . . . . . . Secondary . | . . . . . . . Self-Inflicted Damage 41 | . . . . . 41 . Shots 1 | . . . . . 1 . Rammed . | . . . . . . . Targets Rammed . | . . . . . . . Kicked . | . . . . . . . Crushed . | . . . . . . . Highest Temperature 373 | . 301 151 . . 373 312 Average Temperature 76 | . 77 29 . . 114 109 Received Heat Transfer 1668 | . 342 360 6 . 504 456 Effects 5 | . . . . . . 5 Energy Bleed 1 | . . . . . . 1 Interference 4 | . . . . . . 4 Siege Activations . | . . . . . . . Martial Activations . | . . . . . . . Shielding Activations . | . . . . . . . Robots Disrupted . | . . . . . . . Combat Hostiles . | . . . . . . . Robots Corrupted . | . . . . . . . Combat Hostiles . | . . . . . . . Parts Fried . | . . . . . . . Impact Corruptions . | . . . . . . . Robots Melted 3 | . . 2 . . . 1 Combat Hostiles 3 | . . 2 . . . 1 Parts Melted 24 | . 3 8 . . 8 5 Heat Transferred 12668 | . 1840 5624 . . 2849 2355 Parts Sabotaged . | . . . . . . . Parts Stolen . | . . . . . . . Parts Stripped . | . . . . . . . Power Chain Reactions . | . . . . . . . Alert | -11 -10 -9 -9 -9 -8 -8 ------- Run | Yrd Mat Mat Min Exi Min Mat Maximum Alert Level 2 | . . 2 . . . . Low Security (%) 71 | 100 100 34 100 . 100 100 Level 1 16 | . . 37 . . . . Level 2 12 | . . 28 . . . . Level 3 . | . . . . . . . Level 4 . | . . . . . . . Level 5 . | . . . . . . . High Security . | . . . . . . . Max Security . | . . . . . . . Peak Influence 494 | . 150 494 183 . 121 161 Initial 183 | . . 36 183 . . 29 Average 151 | . 41 264 173 . 59 83 Influence Increases 2385 | . 380 1081 30 . 474 420 Destroy 0b10 Robot/C 1480 | . 240 660 . . 300 280 Destroy 0b10 Robot/NC 115 | . 30 55 . . 15 15 Destroy Leader 352 | . 56 194 . . 50 52 Successful Hack 61 | . 22 16 . . . 23 Disable Machine 15 | . . 15 . . . . Destroy Structure 47 | . 2 6 . . 34 5 Lose Combat Pursuer 315 | . 30 135 30 . 75 45 Influence Decreases 2348 | . 293 697 328 173 399 458 Entered New Map 558 | . . 51 288 173 . 46 Time Decay 1460 | . 233 576 40 . 349 262 Lost Part 330 | . 60 70 . . 50 150 Squads Dispatched 10 | . 2 4 . . . 4 Investigation 2 | . . 1 . . . 1 Extermination . | . . . . . . . Reinforcement 8 | . 2 3 . . . 3 Assault . | . . . . . . . Garrison . | . . . . . . . Intercept . | . . . . . . . Searches Triggered . | . . . . . . . Construction Impeded . | . . . . . . . Haulers Reinforced . | . . . . . . . Active Scanning Responses . | . . . . . . . Cargo Convoy Interrupts . | . . . . . . . Stealth | -11 -10 -9 -9 -9 -8 -8 --------- Run | Yrd Mat Mat Min Exi Min Mat Distress Signals 7 | . 2 4 . . . 1 Communications Jammed . | . . . . . . . Distress Signals . | . . . . . . . Times Spotted 120 | . 26 49 3 . 19 23 Peak Tracking Total 5 | . 4 4 3 . 3 5 Tactical Retreats 16 | . 1 7 1 . 4 3 Traps | -11 -10 -9 -9 -9 -8 -8 ------- Run | Yrd Mat Mat Min Exi Min Mat Traps Triggered 1 | . . . . . . 1 Indirectly . | . . . . . . . Trap Hack Attempts . | . . . . . . . Triggered . | . . . . . . . Disarmed . | . . . . . . . Reprogrammed . | . . . . . . . Reused . | . . . . . . . Traps Extracted . | . . . . . . . Installed . | . . . . . . . Triggered . | . . . . . . . Machines | -11 -10 -9 -9 -9 -8 -8 ---------- Run | Yrd Mat Mat Min Exi Min Mat Machines Disabled 1 | . . 1 . . . . Max in Single Turn 1 | . . 1 . . . . Machines Repaired . | . . . . . . . Machines Dismantled . | . . . . . . . Machines Sabotaged . | . . . . . . . Overloaded Fab Kills . | . . . . . . . Hacking | -11 -10 -9 -9 -9 -8 -8 --------- Run | Yrd Mat Mat Min Exi Min Mat Machines Accessed 21 | . 6 10 . 1 . 4 Terminals 13 | . 4 7 . . . 2 Fabricators . | . . . . . . . Repair Stations . | . . . . . . . Recycling Units 4 | . 2 1 . . . 1 Scanalyzers 3 | . . 2 . . . 1 Garrison Access . | . . . . . . . Total Hacks 82 | . 12 55 . 1 . 14 Successful 52 | . 7 39 . 1 . 5 Failed 30 | . 5 16 . . . 9 Catastrophic 3 | . 2 . . . . 1 Database Lockouts . | . . . . . . . Manual 49 | . 12 24 . . . 13 Terminals 39 | . 8 23 . . . 8 Fabricators . | . . . . . . . Repair Stations . | . . . . . . . Recycling Units 12 | . 4 3 . . . 5 Scanalyzers 30 | . . 29 . . . 1 Garrison Access . | . . . . . . . Terminal Hacks 6 | . 1 4 . 1 . . Record 1 | . . . . 1 . . Part Schematic 1 | . 1 . . . . . Robot Analysis 2 | . . 2 . . . . Branch Access Points 1 | . . 1 . . . . Registered Components 1 | . . 1 . . . . Fabricator Hacks . | . . . . . . . Repair Station Hacks . | . . . . . . . Recycling Unit Hacks . | . . . . . . . Scanalyzer 28 | . . 27 . . . 1 Insert Component 11 | . . 11 . . . . Analyze 12 | . . 12 . . . . Retrieve Study 5 | . . 4 . . . 1 Garrison Access Hacks . | . . . . . . . Unauthorized Hacks 18 | . 6 8 . . . 4 Terminals 11 | . 2 7 . . . 2 Botnet 10 | . 2 6 . . . 2 Detonate 1 | . . 1 . . . . Fabricators . | . . . . . . . Repair Stations . | . . . . . . . Recycling Units 7 | . 4 1 . . . 2 Reject 4 | . 2 1 . . . 1 Mask 3 | . 2 . . . . 1 Scanalyzers . | . . . . . . . Garrison Access . | . . . . . . . Data Cores Recovered 2 | . 1 1 . . . . Used 1 | . . 1 . . . . Hacking Detections 18 | . 5 10 . . . 3 Full Trace Events 2 | . . 2 . . . . Feedback Events . | . . . . . . . Feedback Blocked . | . . . . . . . Robot Schematics Acquired . | . . . . . . . Robots Built . | . . . . . . . Authchips . | . . . . . . . Time . | . . . . . . . Total Robot Build Rating . | . . . . . . . Part Schematics Acquired 12 | . 1 11 . . . . Parts Built . | . . . . . . . Authchips . | . . . . . . . Time . | . . . . . . . Total Part Build Rating . | . . . . . . . Part Studies Acquired 5 | . . 4 . . . 1 Parts Repaired . | . . . . . . . Time . | . . . . . . . Parts Recycled . | . . . . . . . Recycled Matter . | . . . . . . . Retrieved Matter . | . . . . . . . Retrieved Components . | . . . . . . . Parts Scanalyzed 11 | . . 11 . . . . Part Schematics Acquired 11 | . . 11 . . . . Parts Damaged . | . . . . . . . Bothacking | -11 -10 -9 -9 -9 -8 -8 ------------ Run | Yrd Mat Mat Min Exi Min Mat Used RIF Installer . | . . . . . . . Robots Hacked . | . . . . . . . Non-combat . | . . . . . . . Combat . | . . . . . . . Robot Hacks Applied . | . . . . . . . Relay Couplers Released . | . . . . . . . Fabnet Peak Effective % . | . . . . . . . Robots Rewired . | . . . . . . . Allies Hacked . | . . . . . . . Hacks Repelled . | . . . . . . . Allies | -11 -10 -9 -9 -9 -8 -8 -------- Run | Yrd Mat Mat Min Exi Min Mat Total Allies . | . . . . . . . Largest Group . | . . . . . . . Highest-Rated Group . | . . . . . . . Highest-Rated Ally . | . . . . . . . Total Orders . | . . . . . . . Ally Attacks . | . . . . . . . Total Damage . | . . . . . . . Kills . | . . . . . . . Allies Corrupted . | . . . . . . . Allies Melted . | . . . . . . . Intel | -11 -10 -9 -9 -9 -8 -8 ------- Run | Yrd Mat Mat Min Exi Min Mat Active Infowar (turns) 3653 | . . 1784 86 329 873 581 Optics 495 | . . . . . 259 236 Machine Analysis 3653 | . . 1784 86 329 873 581 Robot Analysis Total 2 | . . 2 . . . . Derelict Logs Recovered 1 | . . . 1 . . . Drone Launches . | . . . . . . . Drone Recoveries . | . . . . . . . Exploration | -11 -10 -9 -9 -9 -8 -8 ------------- Run | Yrd Mat Mat Min Exi Min Mat Turns Passed 4582 | 47 784 1882 86 329 873 581 Spaces Moved 2842 | 45 637 1082 64 244 487 283 Core 1 | 1 . . . . . . Treads . | . . . . . . . Legs . | . . . . . . . Wheels 2841 | 44 637 1082 64 244 487 283 Hover . | . . . . . . . Flight . | . . . . . . . Fastest Speed 50 | 50 80 100 135 135 130 120 Average Speed 118 | 79 93 119 135 135 134 135 Slowest Speed 200 | 80 125 200 135 135 200 185 Overloaded Moves . | . . . . . . . Propulsion Burnouts . | . . . . . . . Robots Hopped . | . . . . . . . Potential Cave-ins . | . . . . . . . Cave-ins Triggered . | . . . . . . . Exploration Rate (%) 52 | 3 86 92 18 67 72 29 Regions Visited 6 Branch Regions 3 Pre-discovered Areas 1 | . . . . 1 . . Known Exits Taken 1 | . . 1 . . . . Unknown Exits Taken 5 | 1 1 . 1 1 1 . Scrap Searched 1 | . . . . . 1 . Spaces Dug . | . . . . . . . Terrain Destroyed 40 | . . . . . 40 . Melee . | . . . . . . . Projectile . | . . . . . . . AOE 40 | . . . . . 40 . Terrain Rammed . | . . . . . . . Walls Destroyed . | . . . . . . . Machines Disabled . | . . . . . . . Actions | -11 -10 -9 -9 -9 -8 -8 --------- Run | Yrd Mat Mat Min Exi Min Mat Total 3591 | 53 748 1472 63 243 606 406 Wait 336 | 1 30 229 . . 33 43 Move 2836 | 44 636 1081 63 243 486 283 Hop . | . . . . . . . Pick Up 70 | 3 19 24 . . 8 16 Fast Attach 16 | 5 3 8 . . . . Attach 28 | . 7 6 . . 6 9 Detach 7 | . 2 5 . . . . Swap 25 | . 2 5 . . 9 9 Drop 38 | . 6 13 . . 8 11 Fire 235 | . 43 101 . . 56 35 Melee . | . . . . . . . Ram . | . . . . . . . Kick . | . . . . . . . Crush . | . . . . . . . Escape Stasis . | . . . . . . . Rewire . | . . . . . . . Trap . | . . . . . . . Miscellaneous . | . . . . . . . Route ------- -11/Scrapyard -10/Materials (discovered 4 exits: *Mat x3 / [*Min]) -9/Materials (discovered 5 exits: *Mat x3 / *Min x2) -9/Mines -9/Exiles -8/Mines -8/Materials (discovered 1 exit: Fac) History --------- Turn | Location | Event 18 | -11/Scrapyard | Discovered new exit (range 16) 48 | -11/Scrapyard | Entered Materials 256 | -10/Materials | Discovered new exit (range 10) 283 | -10/Materials | Discovered new exit (range 12) 318 | -10/Materials | Build established: Mutant 558 | -10/Materials | Discovered new exit (range 8) 648 | -10/Materials | Derelicts attacked the area 810 | -10/Materials | Discovered new exit (range 12) 832 | -10/Materials | Entered another Materials area 832 | -9/Materials | Evolved 2 slots: Utility x2 1072 | -9/Materials | Discovered new exit (range 15) 1385 | -9/Materials | Discovered new exit (range 3) 1539 | -9/Materials | Identified exit to Mines 1798 | -9/Materials | Discovered new exit (range 12) 2177 | -9/Materials | Core integrity fell below 50% 2571 | -9/Materials | Discovered new exit (range 14) 2714 | -9/Materials | Entered Mines 2737 | -9/Mines | Learned 2 Materials zone layouts 2793 | -9/Mines | Deemed a non-threat by the Exiles lab entrance 2794 | -9/Mines | Discovered new exit (range 5) 2800 | -9/Mines | Entered Exiles 2834 | -9/Exiles | Met 8R-AWN 2853 | -9/Exiles | Met EX-HEX 2885 | -9/Exiles | Build established: Scavenger-Mutant 2921 | -9/Exiles | Met EX-DEC 2956 | -9/Exiles | Met EX-BIN 3061 | -9/Exiles | Learned location of Zion (-7) 3118 | -9/Exiles | Discovered new exit (range 10) 3129 | -9/Exiles | Entered Mines 3551 | -8/Mines | Core integrity fell below 20% 3692 | -8/Mines | Found a Scrap Suit stashed away for nefarious purposes 3695 | -8/Mines | Found Scrap Suit 3994 | -8/Mines | Discovered new exit (range 5) 4002 | -8/Mines | Entered Materials 4002 | -8/Materials | Evolved 2 slots: Utility x1, Weapon x1 4003 | -8/Materials | Identified exit to Factory 4545 | -8/Materials | Lost 4 parts (2n1u1w) 4583 | -8/Materials | Self-destructed Last Messages --------------- 04570_ Spread Laser destroyed. 04570_ Lgt. Armor Plating destroyed. 04571_ K-01 Serf collects debris. 04572_ Wheel+ destroyed. 04572_ U-05 Engineer lays Concrete. 04574_ Wheel+ destroyed. 04575_ K-01 Serf collects debris. 04575_ Acquired 1 matter. 04576_ U-05 Engineer lays Concrete. 04576_ Adv. Heat Sink destroyed. 04576_ Arm. Wheel+ destroyed. 04577_ U-05 Engineer lays Concrete. 04578_ H-61 Shepherd calls for reinforcements. 04578_ ALERT: Hostile activity reported, dispatching reinforcements to area. 04579_ U-05 Engineer lays Concrete. 04581_ Hvy. Particle Gun destroyed. 04581_ U-05 Engineer builds a Wall. 04581_ Beam Rifle+ destroyed. 04581_ K-01 Serf collects debris. Map ----- +----------------------------------------------------+ | ??????????????????????????????? | | ??????????????????????????????? | | ??????????????????????????????? | | ??????????????????????????????? | | ##????????????????????????????? | | # #######?????????????????????? | | ###?+#???????????????#? | | """""" ""## #?????????????? +? | | " [ "# #????????????? #? | | " "# ##?? ##?????? ?? | | " "# ### #??####+##? | | " uH #??# | | " k; = T????# """" | | " "=%#?????????# """" | | " [ " #?????????#= """" | | """" ;;;;" ######????# | | ####";% = ###### """" | | # %;=! + """" | | # =;* ;######+#+###### """" | | # % # ;# #???# | | # ! + ## #???####+### | | # % #Y ## ! #??????# #?? | | #####; ## #??????# #?? | | ????# % ################## ### | | ???##% | | ???#; @T ## | | ???## % #######+#############? | | ????## ##??????????########### | | ?????# #??????"""??# # | | ?????# #??????"""??# # | | ?????# #??????"""??# # | | ?????# #???????????# ] # | | ????? ???????????# # | | ????? ???????????# "" "" + | | ????? ???????????# ""S"" # | | ???# ## # """" # | | ???# ##################### | | ???# #?# | | ??####+###### | | ??# ## | | ??# #### #####+######/ | | ??# #??# ## # | | ??# #??# ##""" # | | ??# #??# ##""" # ! | | ??# #??# ##""" # ]! | | ??# #??# ## # *! | | ??# #??# ##""" # | | ??# #??# ##""" # "Y" | | ??##########??# ##""" # """ | | ??????????????# ## ! # | +----------------------------------------------------+ Best States ------------- Heat Dissipation 50 Energy Generation 15 Energy Capacity 265 Matter Stores 300 Matter Capacity 300 Sight Range 18 Terrain Scan Density 10 Armor Coverage 300 Evasion (%) 44 Offensive Hacking 10 Defensive Hacking 10 Item Schematics ----------------- Huge Storage Unit | -10/Materials | Hacked Arm. Wheel | -9/Materials | Scanalyzed Lgt. Armor Plating | -9/Materials | Scanalyzed Rocket Launcher | -9/Materials | Scanalyzed Wheel | -9/Materials | Scanalyzed Beam Cannon | -9/Materials | Scanalyzed EMP Blaster | -9/Materials | Scanalyzed Machine Analyzer | -9/Materials | Scanalyzed Heat Sink | -9/Materials | Scanalyzed Hcp. Matter Pod | -9/Materials | Scanalyzed Adv. Beam Cannon | -9/Materials | Scanalyzed Lrg. Battery | -9/Materials | Scanalyzed Robot Schematics ------------------ None Fabricated ------------ Nothing Repaired ---------- Nothing Studied --------- Arm. Wheel | -9/Materials | Hacked Wheel | -9/Materials | Hacked Beam Cannon | -9/Materials | Hacked Beam Rifle | -9/Materials | Hacked Lgt. Nuclear Core | -8/Materials | Hacked Alien Tech Used ----------------- None Achievements -------------- None Challenges ------------ None Game ------ Seed FlyingAuthchipPower Manual? 0 Play Time 00:44:52 Cumulative 185.1 hours Start 2026.07.11 @ 21:14:18 End 2026.07.18 @ 17:37:32 Sessions 5 Manual Loads 0 Difficulty Rogue Special Mode None Game No. 250 Rogue 250 Adventurer 0 Explorer 0 Win Type - Total 3 Types 3/0/0/0/0/0/0/0/0/0 Lore% 78 Gallery% 57 Achievement% 44 Wizard Run 0 Options --------- Layout 0 ASCII 0 Keyboard 0 Movement Numpad Keybinds 0 Fullscreen 1 Font 18/Terminus Map View 76x50 Zoom Use 0% Tactical HUD 1 Map Filters NONE Filters NONE Steam 1 RUN: 33c28b17-13cc-4767-8c9c-006555b093d0